fUST/lending_fUST_20250227
["ID","MTS","AMOUNT","RATE_DAILY","PERIOD"]
[354662011,1740605397482,-500.0,0.0005315,120]
[354662012,1740605397506,-543.02141666,0.0005315,120]
[354662013,1740605397528,-500.0,0.0005315,120]
[354662014,1740605397549,-500.0,0.0005315,120]
[354662015,1740605397572,-1165.92,0.0005315,3]
[354662016,1740605397594,-815.14,0.0005315,120]
[354662017,1740605397618,-500.0,0.0005315,120]
[354662018,1740605397639,-591.38,0.0005315,120]
[354662019,1740605397662,-500.0,0.0005315,120]
[354662020,1740605397683,-500.0,0.0005315,120]
[354662021,1740605397704,-500.0,0.0005315,14]
[354662022,1740605397726,-500.0,0.0005315,120]
[354662023,1740605397747,-522.61281689,0.0005315,120]
[354662024,1740605397770,-500.0,0.0005315,120]
[354662025,1740605397792,-500.0,0.0005315,120]
[354662026,1740605397816,-500.0,0.0005315,120]
[354662027,1740605397840,-500.0,0.0005315,120]
[354662028,1740605397861,-500.0,0.0005315,120]
[354662029,1740605397882,-500.0,0.0005315,120]
[354662030,1740605397904,-500.0,0.0005315,120]
[354662031,1740605397925,-380.68,0.0005315,120]
[354662032,1740605397946,-500.0,0.0005315,120]
[354662033,1740605397966,-151.71,0.000532,30]
[354662034,1740605397987,-500.0,0.00053424,120]
[354662035,1740605398011,-500.0,0.00053424,120]
[354662036,1740605398031,-500.0,0.00053424,120]
[354662037,1740605398051,-500.0,0.00053424,120]
[354662038,1740605398073,-500.0,0.00053424,120]
[354662039,1740605398093,-896.6,0.00053424,120]
[354662040,1740605398115,-500.0,0.00053424,120]
[354662041,1740605398136,-500.0,0.00053424,120]
[354662042,1740605398159,-500.0,0.00053424,120]
[354662043,1740605398181,-500.0,0.00053424,120]
[354662044,1740605398203,-500.0,0.00053424,120]
[354662045,1740605398226,-500.0,0.00053424,120]
[354662046,1740605398255,-500.0,0.00053424,120]
[354662047,1740605398289,-500.0,0.00053424,120]
[354662048,1740605398319,-500.0,0.00053424,120]
[354662049,1740605398349,-500.0,0.00053424,120]
[354662050,1740605398377,-500.0,0.00053424,120]
[354662051,1740605398407,-500.0,0.00053424,120]
[354662052,1740605398436,-520.77,0.00053424,120]
[354662053,1740605398464,-593.31,0.00053424,120]
[354662054,1740605398489,-500.0,0.00053424,120]
[354662055,1740605398518,-500.0,0.00053424,120]
[354662056,1740605398545,-500.0,0.00053424,120]
[354662057,1740605398569,-526.63362037,0.00053424,120]
[354662058,1740605398594,-378.67773144,0.00053424,120]
[354662059,1740605398621,-500.0,0.00053424,15]
[354662060,1740605398650,-500.0,0.00053424,120]
[354662061,1740605398680,-309.02207184,0.00053424,5]
[354662062,1740605398708,-500.0,0.00053424,120]
[354662063,1740605398731,-500.0,0.00053424,120]
[354662064,1740605398756,-500.0,0.00053424,120]
[354662065,1740605398786,-500.0,0.00053424,120]
[354662066,1740605398809,-500.0,0.00053424,120]
[354662067,1740605398833,-546.95,0.00053424,120]
[354662068,1740605398859,-500.0,0.00053424,120]
[354662069,1740605398883,-129.66871789,0.00053424,120]
[354662070,1740605399121,-660.21482679,0.000519,12]
[354662071,1740605399149,-370.33128211,0.00053424,120]
[354662072,1740605399176,-500.0,0.00053424,120]
[354662073,1740605399201,-546.56,0.00053424,120]
[354662074,1740605399231,-500.0,0.00053424,120]
[354662075,1740605399263,-500.0,0.00053424,120]
[354662076,1740605399288,-500.0,0.00053424,120]
[354662077,1740605399308,-500.0,0.00053424,120]
[354662078,1740605399330,-500.0,0.00053424,120]
[354662079,1740605399356,-500.0,0.00053424,120]
[354662080,1740605399380,-261.9,0.00053424,120]
[354662081,1740605399401,-500.0,0.00053424,120]
[354662082,1740605399424,-500.0,0.00053424,120]
[354662083,1740605399446,-536.79,0.00053424,120]
[354662084,1740605399469,-500.0,0.00053424,120]
[354662085,1740605399491,-500.0,0.00053424,120]
[354662086,1740605399513,-500.0,0.00053424,120]
[354662087,1740605399535,-1165.92,0.00053424,3]
[354662088,1740605399556,-815.14,0.00053424,120]
[354662089,1740605399578,-560.38589663,0.00053424,120]
[354662090,1740605399605,-425.9914326,0.00053424,120]
[354662091,1740605399626,-500.0,0.00053424,14]
[354662092,1740605399647,-500.0,0.00053424,120]
[354662093,1740605399669,-500.0,0.00053424,120]
[354662094,1740605399692,-500.0,0.00053424,120]
[354662095,1740605399714,-500.0,0.00053424,120]
[354662096,1740605399734,-500.0,0.00053424,120]
[354662097,1740605399758,-500.0,0.00053424,120]
[354662098,1740605399779,-500.0,0.00053424,120]
[354662099,1740605399799,-500.0,0.00053424,120]
[354662100,1740605399820,-256.28857821,0.00053424,120]
[354662101,1740605400061,-500.0,0.00053698,120]
[354662102,1740605400091,-500.0,0.00053698,120]
[354662103,1740605400113,-500.0,0.00053698,120]
[354662104,1740605400135,-500.0,0.00053698,120]
[354662105,1740605400157,-896.6,0.00053698,120]
[354662106,1740605400181,-500.0,0.00053698,120]
[354662107,1740605400215,-500.0,0.00053698,120]
[354662108,1740605400243,-500.0,0.00053698,120]
[354662109,1740605400271,-500.0,0.00053698,120]
[354662110,1740605400297,-500.0,0.00053698,120]
[354662111,1740605400323,-500.0,0.00053698,120]
[354662112,1740605400348,-500.0,0.00053698,120]
[354662113,1740605400372,-347.85743595,0.00053698,120]
[354662114,1740605400397,-500.0,0.00053698,120]
[354662115,1740605400421,-500.0,0.00053698,120]
[354662116,1740605400445,-500.0,0.00053698,120]
[354662117,1740605400468,-520.77,0.00053698,120]
[354662118,1740605400492,-593.31,0.00053698,120]
[354662119,1740605400527,-500.0,0.00053698,120]
[354662120,1740605400550,-500.0,0.00053698,120]
[354662121,1740605400574,-500.0,0.00053698,120]
[354662122,1740605400596,-500.0,0.00053698,15]
[354662123,1740605400619,-500.0,0.00053698,120]
[354662124,1740605400641,-500.0,0.00053698,120]
[354662125,1740605400663,-500.0,0.00053698,120]
[354662126,1740605400685,-500.0,0.00053698,120]
[354662127,1740605400707,-500.0,0.00053698,120]
[354662128,1740605400730,-546.95,0.00053698,120]
[354662129,1740605400751,-500.0,0.00053698,120]
[354662130,1740605400777,-503.0,0.00053698,120]
[354662131,1740605400799,-500.0,0.00053698,120]
[354662132,1740605400820,-546.56,0.00053698,120]
[354662133,1740605400842,-500.0,0.00053698,120]
[354662134,1740605400864,-500.0,0.00053698,120]
[354662135,1740605400886,-500.0,0.00053698,120]
[354662136,1740605400907,-500.0,0.00053698,120]
[354662137,1740605400928,-500.0,0.00053698,120]
[354662138,1740605400950,-500.0,0.00053698,120]
[354662139,1740605400972,-500.0,0.00053698,120]
[354662140,1740605400994,-500.0,0.00053698,120]
[354662141,1740605401019,-536.79,0.00053698,120]
[354662142,1740605401041,-500.0,0.00053698,120]
[354662143,1740605401063,-500.0,0.00053698,120]
[354662144,1740605401084,-500.0,0.00053698,120]
[354662145,1740605401107,-1165.92,0.00053698,3]
[354662146,1740605401129,-815.14,0.00053698,120]
[354662147,1740605401151,-500.0,0.00053698,14]
[354662148,1740605401179,-500.0,0.00053698,120]
[354662149,1740605401201,-500.0,0.00053698,120]
[354662150,1740605401226,-500.0,0.00053698,120]
[354662151,1740605401251,-500.0,0.00053698,120]
[354662152,1740605401277,-500.0,0.00053698,120]
[354662153,1740605401300,-500.0,0.00053698,120]
[354662154,1740605401322,-500.0,0.00053698,120]
[354662155,1740605401345,-295.31011645,0.00053698,120]
[354662156,1740605401367,-500.0,0.00053972,120]
[354662157,1740605401388,-500.0,0.00053972,120]
[354662158,1740605401409,-500.0,0.00053972,120]
[354662159,1740605401431,-896.6,0.00053972,120]
[354662160,1740605401453,-500.0,0.00053972,120]
[354662161,1740605401474,-234.84392406,0.00053972,120]
[354662162,1740605401496,-612.56224434,0.00053972,120]
[354662163,1740605401520,-500.0,0.00053972,120]
[354662164,1740605401540,-500.0,0.00053972,120]
[354662165,1740605401562,-500.0,0.00053972,120]
[354662166,1740605401583,-500.0,0.00053972,120]
[354662167,1740605401605,-500.0,0.00053972,120]
[354662168,1740605401627,-500.0,0.00053972,120]
[354662169,1740605401648,-500.0,0.00053972,120]
[354662170,1740605401671,-520.77,0.00053972,120]
[354662171,1740605401696,-593.31,0.00053972,120]
[354662172,1740605401722,-500.0,0.00053972,120]
[354662173,1740605401745,-500.0,0.00053972,120]
[354662174,1740605401772,-500.0,0.00053972,120]
[354662175,1740605401795,-500.0,0.00053972,15]
[354662176,1740605401818,-500.0,0.00053972,120]
[354662177,1740605401840,-466.88,0.00053972,120]
[354662178,1740605401861,-500.0,0.00053972,120]
[354662179,1740605401882,-500.0,0.00053972,120]
[354662180,1740605401904,-500.0,0.00053972,120]
[354662181,1740605401924,-546.95,0.00053972,120]
[354662182,1740605401945,-500.0,0.00053972,120]
[354662183,1740605401967,-500.0,0.00053972,120]
[354662184,1740605401987,-546.56,0.00053972,120]
[354662185,1740605402012,-500.0,0.00053972,120]
[354662186,1740605402034,-446.68,0.00053972,120]
[354662187,1740605402056,-500.0,0.00053972,120]
[354662188,1740605402077,-153.66635093,0.00053972,120]
[354662189,1740605402100,-520.62914685,0.00053972,120]
[354662190,1740605402122,-500.0,0.00053972,120]
[354662191,1740605402144,-500.0,0.00053972,120]
[354662192,1740605402167,-500.0,0.00053972,120]
[354662193,1740605402190,-536.79,0.00053972,120]
[354662194,1740605402213,-209.4,0.00053972,120]
[354662195,1740605402236,-500.0,0.00053972,120]
[354662196,1740605402263,-500.0,0.00053972,120]
[354662197,1740605402289,-1165.92,0.00053972,3]
[354662198,1740605402313,-815.14,0.00053972,120]
[354662199,1740605402337,-322.35157071,0.00053972,14]
[354662200,1740605402360,-500.0,0.00053972,120]
[354662201,1740605402383,-500.0,0.00053972,120]
[354662202,1740605402406,-500.0,0.00053972,120]
[354662203,1740605402428,-500.0,0.00053972,120]
[354662204,1740605402450,-500.0,0.00053972,120]
[354662205,1740605402472,-500.0,0.00053972,120]
[354662206,1740605402494,-500.0,0.00053972,120]
[354662207,1740605402521,-160.0,0.0005398,3]
[354662208,1740605402543,-204.42742184,0.00054,120]
[354662209,1740605402564,-500.0,0.00054246,120]
[354662210,1740605402586,-500.0,0.00054246,120]
[354662211,1740605402607,-500.0,0.00054246,120]
[354662212,1740605402628,-896.6,0.00054246,120]
[354662213,1740605402651,-500.0,0.00054246,120]
[354662214,1740605402676,-500.0,0.00054246,120]
[354662215,1740605402698,-506.86261643,0.00054246,120]
[354662216,1740605402719,-500.0,0.00054246,120]
[354662217,1740605402741,-500.0,0.00054246,120]
[354662218,1740605402768,-500.0,0.00054246,120]
[354662219,1740605402789,-500.0,0.00054246,120]
[354662220,1740605402810,-500.0,0.00054246,120]
[354662221,1740605402830,-520.77,0.00054246,120]
[354662222,1740605402852,-593.31,0.00054246,120]
[354662223,1740605402875,-151.5,0.00054246,120]
[354662224,1740605402897,-500.0,0.00054246,120]
[354662225,1740605402923,-500.0,0.00054246,120]
[354662226,1740605402946,-500.0,0.00054246,15]
[354662227,1740605402969,-500.0,0.00054246,120]
[354662228,1740605402991,-500.0,0.00054246,120]
[354662229,1740605403015,-500.0,0.00054246,120]
[354662230,1740605403051,-500.0,0.00054246,120]
[354662231,1740605403073,-546.95,0.00054246,120]
[354662232,1740605403096,-500.0,0.00054246,120]
[354662233,1740605403120,-500.0,0.00054246,120]
[354662234,1740605403144,-546.56,0.00054246,120]
[354662235,1740605403169,-221.0753491,0.00054246,120]
[354662236,1740605403194,-500.0,0.00054246,120]
[354662237,1740605403220,-500.0,0.00054246,120]
[354662238,1740605403245,-500.0,0.00054246,120]
[354662239,1740605403279,-500.0,0.00054246,120]
[354662240,1740605403306,-536.79,0.00054246,120]
[354662241,1740605403331,-500.0,0.00054246,120]
[354662242,1740605403465,-500.0,0.00054246,120]
[354662243,1740605403492,-1165.92,0.00054246,3]
[354662244,1740605403523,-815.14,0.00054246,120]
[354662245,1740605403549,-500.0,0.00054246,120]
[354662246,1740605403575,-539.76082376,0.00054246,120]
[354662247,1740605403607,-500.0,0.00054246,120]
[354662248,1740605403631,-500.0,0.00054246,120]
[354662249,1740605403656,-500.0,0.00054246,120]
[354662250,1740605403683,-500.0,0.00054246,120]
[354662251,1740605403705,-500.0,0.00054246,120]
[354662252,1740605403727,-500.0,0.0005452,120]
[354662253,1740605403749,-500.0,0.0005452,120]
[354662254,1740605403775,-500.0,0.0005452,120]
[354662255,1740605403797,-896.6,0.0005452,120]
[354662256,1740605403820,-500.0,0.0005452,120]
[354662257,1740605403844,-500.0,0.0005452,120]
[354662258,1740605403868,-500.0,0.0005452,120]
[354662259,1740605403892,-500.0,0.0005452,120]
[354662260,1740605403917,-500.0,0.0005452,120]
[354662261,1740605403940,-500.0,0.0005452,120]
[354662262,1740605403963,-520.77,0.0005452,120]
[354662263,1740605403987,-593.31,0.0005452,120]
[354662264,1740605404015,-500.0,0.0005452,120]
[354662265,1740605404039,-500.0,0.0005452,120]
[354662266,1740605404062,-500.0,0.0005452,15]
[354662267,1740605404087,-500.0,0.0005452,120]
[354662268,1740605404113,-500.0,0.0005452,120]
[354662269,1740605404138,-500.0,0.0005452,120]
[354662270,1740605404163,-500.0,0.0005452,120]
[354662271,1740605404191,-546.95,0.0005452,120]
[354662272,1740605404219,-500.0,0.0005452,120]
[354662273,1740605404248,-500.0,0.0005452,120]
[354662274,1740605404280,-546.56,0.0005452,120]
[354662275,1740605404308,-500.0,0.0005452,120]
[354662276,1740605404334,-500.0,0.0005452,120]
[354662277,1740605404360,-311.63762362,0.0005452,120]
[354662278,1740605404386,-500.0,0.0005452,120]
[354662279,1740605404417,-536.79,0.0005452,120]
[354662280,1740605404450,-500.0,0.0005452,120]
[354662281,1740605404478,-500.0,0.0005452,120]
[354662282,1740605404504,-1165.92,0.0005452,3]
[354662283,1740605404532,-815.14,0.0005452,120]
[354662284,1740605404557,-500.0,0.0005452,120]
[354662285,1740605404582,-500.0,0.0005452,120]
[354662286,1740605404607,-500.0,0.0005452,120]
[354662287,1740605404631,-186.77,0.0005452,120]
[354662288,1740605404656,-457.48523003,0.0005452,120]
[354662289,1740605404678,-500.0,0.0005452,120]
[354662290,1740605404700,-2000.0,0.00054794,120]
[354662291,1740605404723,-500.0,0.00054794,120]
[354662292,1740605404748,-500.0,0.00054794,120]
[354662293,1740605404776,-896.6,0.00054794,120]
[354662294,1740605404800,-500.0,0.00054794,120]
[354662295,1740605404834,-500.0,0.00054794,120]
[354662296,1740605404859,-500.0,0.00054794,120]
[354662297,1740605404882,-500.0,0.00054794,120]
[354662298,1740605404908,-500.0,0.00054794,120]
[354662299,1740605404933,-500.0,0.00054794,120]
[354662300,1740605404957,-520.77,0.00054794,120]
[354662301,1740605404981,-593.31,0.00054794,120]
[354662302,1740605405005,-500.0,0.00054794,120]
[354662303,1740605405034,-500.0,0.00054794,120]
[354662304,1740605405059,-600.0,0.00054794,120]
[354662305,1740605405084,-600.0,0.00054794,120]
[354662306,1740605405113,-500.0,0.00054794,15]
[354662307,1740605405136,-435.82,0.00054794,120]
[354662308,1740605405160,-500.0,0.00054794,120]
[354662309,1740605405185,-500.0,0.00054794,120]
[354662310,1740605405208,-500.0,0.00054794,120]
[354662311,1740605405232,-500.0,0.00054794,120]
[354662312,1740605405257,-546.95,0.00054794,120]
[354662313,1740605405287,-500.0,0.00054794,120]
[354662314,1740605405311,-604.44665081,0.00054794,120]
[354662315,1740605405335,-546.56,0.00054794,120]
[354662316,1740605405358,-500.0,0.00054794,120]
[354662317,1740605405380,-500.0,0.00054794,120]
[354662318,1740605405404,-500.0,0.00054794,120]
[354662319,1740605405427,-500.0,0.00054794,120]
[354662320,1740605405451,-536.79,0.00054794,120]
[354662321,1740605405474,-500.0,0.00054794,120]
[354662322,1740605405502,-500.0,0.00054794,120]
[354662323,1740605405529,-1165.92,0.00054794,3]
[354662324,1740605405553,-815.14,0.00054794,120]
[354662325,1740605405577,-500.0,0.00054794,120]
[354662326,1740605405602,-500.0,0.00054794,120]
[354662327,1740605405626,-500.0,0.00054794,120]
[354662328,1740605405650,-500.0,0.00054794,120]
[354662329,1740605405674,-500.0,0.00055068,120]
[354662330,1740605405697,-500.0,0.00055068,120]
[354662331,1740605405725,-896.6,0.00055068,120]
[354662332,1740605405753,-500.0,0.00055068,120]
[354662333,1740605405787,-500.0,0.00055068,120]
[354662334,1740605405810,-500.0,0.00055068,120]
[354662335,1740605405834,-500.0,0.00055068,120]
[354662336,1740605405860,-500.0,0.00055068,120]
[354662337,1740605405884,-500.0,0.00055068,120]
[354662338,1740605405910,-520.77,0.00055068,120]
[354662339,1740605405935,-593.31,0.00055068,120]
[354662340,1740605405960,-500.0,0.00055068,120]
[354662341,1740605405983,-500.0,0.00055068,120]
[354662342,1740605406005,-500.0,0.00055068,15]
[354662343,1740605406031,-500.0,0.00055068,120]
[354662344,1740605406055,-500.0,0.00055068,120]
[354662345,1740605406079,-500.0,0.00055068,120]
[354662346,1740605406103,-500.0,0.00055068,120]
[354662347,1740605406131,-546.95,0.00055068,120]
[354662348,1740605406154,-500.0,0.00055068,120]
[354662349,1740605406177,-546.56,0.00055068,120]
[354662350,1740605406220,-500.0,0.00055068,120]
[354662351,1740605406249,-500.0,0.00055068,120]
[354662352,1740605406275,-500.0,0.00055068,120]
[354662353,1740605406300,-536.79,0.00055068,120]
[354662354,1740605406325,-500.0,0.00055068,120]
[354662355,1740605406352,-500.0,0.00055068,120]
[354662356,1740605406376,-1165.92,0.00055068,3]
[354662357,1740605406399,-815.14,0.00055068,120]
[354662358,1740605406423,-232.06,0.00055068,120]
[354662359,1740605406446,-251.38,0.00055068,120]
[354662360,1740605406468,-500.0,0.00055068,120]
[354662361,1740605406494,-500.0,0.00055068,120]
[354662362,1740605406519,-500.0,0.00055342,120]
[354662363,1740605406543,-896.6,0.00055342,120]
[354662364,1740605406566,-500.0,0.00055342,120]
[354662365,1740605406589,-500.0,0.00055342,120]
[354662366,1740605406612,-500.0,0.00055342,120]
[354662367,1740605406636,-500.0,0.00055342,120]
[354662368,1740605406659,-500.0,0.00055342,120]
[354662369,1740605406682,-500.0,0.00055342,120]
[354662370,1740605406704,-520.77,0.00055342,120]
[354662371,1740605406727,-593.31,0.00055342,120]
[354662372,1740605406750,-500.0,0.00055342,120]
[354662373,1740605406778,-500.0,0.00055342,120]
[354662374,1740605406801,-500.0,0.00055342,15]
[354662375,1740605406827,-500.0,0.00055342,120]
[354662376,1740605406857,-416.91563104,0.00055342,120]
[354662377,1740605406881,-500.0,0.00055342,120]
[354662378,1740605406907,-500.0,0.00055342,120]
[354662379,1740605406930,-546.95,0.00055342,120]
[354662380,1740605406954,-500.0,0.00055342,120]
[354662381,1740605406977,-546.56,0.00055342,120]
[354662382,1740605407002,-500.0,0.00055342,120]
[354662383,1740605407029,-500.0,0.00055342,120]
[354662384,1740605407054,-500.0,0.00055342,120]
[354662385,1740605407077,-536.79,0.00055342,120]
[354662386,1740605407102,-500.0,0.00055342,120]
[354662387,1740605407124,-500.0,0.00055342,120]
[354662388,1740605407149,-1165.92,0.00055342,3]
[354662389,1740605407172,-815.14,0.00055342,120]
[354662390,1740605407196,-500.0,0.00055342,120]
[354662391,1740605407221,-504.99898215,0.00055342,120]
[354662392,1740605407247,-659.12411884,0.0005561,4]
[354662393,1740605407273,-500.0,0.00055616,120]
[354662394,1740605407297,-896.6,0.00055616,120]
[354662395,1740605407319,-500.0,0.00055616,120]
[354662396,1740605407343,-500.0,0.00055616,120]
[354662397,1740605407365,-500.0,0.00055616,120]
[354662398,1740605407388,-500.0,0.00055616,120]
[354662399,1740605407411,-477.40715086,0.00055616,120]
[354662400,1740605407435,-500.0,0.00055616,120]
[354662401,1740605407460,-520.77,0.00055616,120]
[354662402,1740605407483,-593.31,0.00055616,120]
[354662403,1740605407506,-204.76,0.00055616,120]
[354662404,1740605407531,-500.0,0.00055616,120]
[354662405,1740605407552,-500.0,0.00055616,15]
[354662406,1740605407575,-500.0,0.00055616,120]
[354662407,1740605407598,-500.0,0.00055616,120]
[354662408,1740605407621,-500.0,0.00055616,120]
[354662409,1740605407645,-546.95,0.00055616,120]
[354662410,1740605407668,-500.0,0.00055616,120]
[354662411,1740605407691,-546.56,0.00055616,120]
[354662412,1740605407713,-500.0,0.00055616,120]
[354662413,1740605407738,-500.0,0.00055616,120]
[354662414,1740605407765,-500.0,0.00055616,120]
[354662415,1740605407789,-536.79,0.00055616,120]
[354662416,1740605407816,-500.0,0.00055616,120]
[354662417,1740605407839,-500.0,0.00055616,120]
[354662418,1740605407863,-1165.92,0.00055616,3]
[354662419,1740605407885,-815.14,0.00055616,120]
[354662420,1740605407907,-500.0,0.00055616,120]
[354662421,1740605407929,-462.13674286,0.0005589,120]
[354662422,1740605407951,-896.6,0.0005589,120]
[354662423,1740605407974,-216.40990958,0.0005589,120]
[354662424,1740605407996,-500.0,0.0005589,120]
[354662425,1740605408022,-500.0,0.0005589,120]
[354662426,1740605408044,-500.0,0.0005589,120]
[354662427,1740605408068,-500.0,0.0005589,120]
[354662428,1740605408095,-520.77,0.0005589,120]
[354662429,1740605408118,-593.31,0.0005589,120]
[354662430,1740605408142,-500.0,0.0005589,120]
[354662431,1740605408164,-500.0,0.0005589,15]
[354662432,1740605408188,-477.77737229,0.0005589,120]
[354662433,1740605408213,-500.0,0.0005589,120]
[354662434,1740605408238,-175.36,0.0005589,120]
[354662435,1740605408268,-546.95,0.0005589,120]
[354662436,1740605408292,-500.0,0.0005589,120]
[354662437,1740605408314,-546.56,0.0005589,120]
[354662438,1740605408339,-560.83106097,0.0005589,120]
[354662439,1740605408365,-435.09512752,0.0005589,120]
[354662440,1740605408389,-500.0,0.0005589,120]
[354662441,1740605408416,-536.79,0.0005589,120]
[354662442,1740605408440,-211.16705888,0.0005589,120]
[354662443,1740605408464,-500.0,0.0005589,120]
[354662444,1740605408487,-1165.92,0.0005589,3]
[354662445,1740605408510,-815.14,0.0005589,120]
[354662446,1740605408535,-500.0,0.0005589,120]
[354662447,1740605408558,-896.6,0.00056164,120]
[354662448,1740605408581,-500.0,0.00056164,120]
[354662449,1740605408609,-500.0,0.00056164,120]
[354662450,1740605408633,-500.0,0.00056164,120]
[354662451,1740605408657,-194.00438311,0.00056164,120]
[354662452,1740605408680,-520.77,0.00056164,120]
[354662453,1740605408705,-593.31,0.00056164,120]
[354662454,1740605408728,-467.69491959,0.00056164,120]
[354662455,1740605408752,-500.0,0.00056164,15]
[354662456,1740605408780,-500.0,0.00056164,120]
[354662457,1740605408805,-546.95,0.00056164,120]
[354662458,1740605408828,-500.0,0.00056164,120]
[354662459,1740605408852,-546.56,0.00056164,120]
[354662460,1740605408877,-500.0,0.00056164,120]
[354662461,1740605408900,-536.79,0.00056164,120]
[354662462,1740605408923,-500.0,0.00056164,120]
[354662463,1740605408947,-1165.92,0.00056164,3]
[354662464,1740605408971,-815.14,0.00056164,120]
[354662465,1740605408994,-500.0,0.00056164,120]
[354662466,1740605409019,-896.6,0.00056438,120]
[354662467,1740605409045,-500.0,0.00056438,120]
[354662468,1740605409068,-213.53,0.00056438,120]
[354662469,1740605409093,-500.0,0.00056438,120]
[354662470,1740605409116,-520.77,0.00056438,120]
[354662471,1740605409140,-593.31,0.00056438,120]
[354662472,1740605409165,-150.66,0.00056438,15]
[354662473,1740605409193,-500.0,0.00056438,120]
[354662474,1740605409218,-546.95,0.00056438,120]
[354662475,1740605409244,-500.0,0.00056438,120]
[354662476,1740605409273,-546.56,0.00056438,120]
[354662477,1740605409301,-500.0,0.00056438,120]
[354662478,1740605409326,-536.79,0.00056438,120]
[354662479,1740605409353,-500.0,0.00056438,120]
[354662480,1740605409377,-1165.92,0.00056438,3]
[354662481,1740605409400,-815.14,0.00056438,120]
[354662482,1740605409423,-500.0,0.00056438,120]
[354662483,1740605409445,-896.6,0.00056712,120]
[354662484,1740605409469,-500.0,0.00056712,120]
[354662485,1740605409492,-500.0,0.00056712,120]
[354662486,1740605409517,-520.77,0.00056712,120]
[354662487,1740605409540,-593.31,0.00056712,120]
[354662488,1740605409563,-500.0,0.00056712,120]
[354662489,1740605409585,-546.95,0.00056712,120]
[354662490,1740605409608,-500.0,0.00056712,120]
[354662491,1740605409630,-546.56,0.00056712,120]
[354662492,1740605409655,-174.61,0.00056712,120]
[354662493,1740605409679,-536.79,0.00056712,120]
[354662494,1740605409702,-500.0,0.00056712,120]
[354662495,1740605409726,-1165.92,0.00056712,3]
[354662496,1740605409753,-815.14,0.00056712,120]
[354662497,1740605409781,-500.0,0.00056712,120]
[354662498,1740605409806,-896.6,0.00056986,120]
[354662499,1740605409831,-500.0,0.00056986,120]
[354662500,1740605409855,-500.0,0.00056986,120]
[354662501,1740605409880,-520.77,0.00056986,120]
[354662502,1740605409905,-593.31,0.00056986,120]
[354662503,1740605409930,-500.0,0.00056986,120]
[354662504,1740605409955,-546.95,0.00056986,120]
[354662505,1740605409977,-467.70708894,0.00056986,120]
[354662506,1740605410000,-546.56,0.00056986,120]
[354662507,1740605410026,-536.79,0.00056986,120]
[354662508,1740605410050,-500.0,0.00056986,120]
[354662509,1740605410074,-1165.92,0.00056986,3]
[354662510,1740605410101,-815.14,0.00056986,120]